fUST/lending_fUST_20240824
["ID","MTS","AMOUNT","RATE_DAILY","PERIOD"]
[335760035,1724479856653,-828.900831,0.00013972,2]
[335760036,1724479856665,-828.900831,0.00013972,2]
[335760037,1724479856674,-500.0,0.00013972,2]
[335760038,1724479856684,-500.0,0.00013972,2]
[335760039,1724479856694,-500.0,0.00013972,2]
[335760040,1724479856703,-866.28,0.00013972,2]
[335760041,1724479856712,-500.0,0.00013972,2]
[335760042,1724479856722,-500.0,0.00013972,2]
[335760043,1724479856731,-606.27,0.00013972,2]
[335760044,1724479856740,-834.48,0.00013972,2]
[335760045,1724479856750,-666.56,0.00013972,2]
[335760046,1724479856759,-500.0,0.00013972,2]
[335760047,1724479856768,-500.0,0.00013972,2]
[335760048,1724479856779,-549.47,0.00013972,2]
[335760049,1724479856789,-151.0,0.00013972,2]
[335760050,1724479856801,-152.236117,0.00013972,2]
[335760051,1724479856811,-500.0,0.00013972,2]
[335760052,1724479856822,-500.0,0.00013972,2]
[335760053,1724479856832,-2185.53,0.00013972,2]
[335760054,1724479856841,-500.0,0.00013972,2]
[335760055,1724479856851,-500.0,0.00013972,2]
[335760056,1724479856861,-500.0,0.00013972,2]
[335760057,1724479856870,-500.0,0.00013972,2]
[335760058,1724479856880,-500.0,0.00013972,2]
[335760059,1724479856890,-983.06,0.00013972,2]
[335760060,1724479856901,-1003.55,0.00013972,2]
[335760061,1724479856912,-500.0,0.00013972,2]
[335760062,1724479856923,-500.0,0.00013972,2]
[335760063,1724479856934,-500.0,0.00013972,2]
[335760064,1724479856944,-151.0,0.00013972,2]
[335760065,1724479856955,-151.0,0.00013972,2]
[335760066,1724479856966,-500.0,0.00013972,2]
[335760067,1724479856976,-1425.95,0.00013972,2]
[335760068,1724479856985,-151.0,0.00013972,2]
[335760069,1724479856995,-156.094882,0.00013972,2]
[335760070,1724479857004,-491.82331326,0.00013972,2]
[335760071,1724479857014,-1006.69,0.00013972,2]
[335760072,1724479857025,-151.0,0.00013972,2]
[335760073,1724479857035,-151.0,0.00013972,2]
[335760074,1724479857046,-955.53,0.00013972,2]
[335760075,1724479857057,-500.0,0.00013972,2]
[335760076,1724479857068,-500.0,0.00013972,2]
[335760077,1724479857078,-500.0,0.00013972,2]
[335760078,1724479857089,-1114.9,0.00013972,2]
[335760079,1724479857100,-151.0,0.00013972,2]
[335760080,1724479857110,-151.0,0.00013972,2]
[335760081,1724479857121,-500.0,0.00013972,2]
[335760082,1724479857130,-500.0,0.00013972,2]
[335760083,1724479857140,-500.0,0.00013972,2]
[335760084,1724479857151,-762.56,0.00013972,2]
[335760085,1724479857161,-1414.6,0.00013972,2]
[335760086,1724479857172,-663.48,0.00013972,2]
[335760087,1724479857182,-865.98,0.00013972,2]
[335760088,1724479857193,-1321.08,0.00013972,2]
[335760089,1724479857203,-426.64184,0.00013972,2]
[335760090,1724479857213,-426.64184,0.00013972,2]
[335760091,1724479857223,-500.0,0.00013972,2]
[335760092,1724479857233,-500.0,0.00013972,2]
[335760093,1724479857243,-590.86,0.00013972,2]
[335760094,1724479857253,-261.313277,0.00013972,2]
[335760095,1724479857264,-261.313277,0.00013972,2]
[335760096,1724479857273,-426.64184,0.00013972,2]
[335760097,1724479857283,-583.33,0.00013972,2]
[335760098,1724479857292,-426.64184,0.00013972,2]
[335760099,1724479857302,-1036.11,0.00013972,2]
[335760100,1724479857311,-500.0,0.00013972,2]
[335760101,1724479857321,-1147.49,0.00013972,2]
[335760102,1724479857331,-500.0,0.00013972,2]
[335760103,1724479857341,-261.313277,0.00013972,2]
[335760104,1724479857352,-1254.01,0.00013972,2]
[335760105,1724479857362,-261.313277,0.00013972,2]
[335760106,1724479857373,-500.0,0.00013972,2]
[335760107,1724479857383,-896.1,0.00013972,2]
[335760108,1724479857395,-1494.88,0.00013972,2]
[335760109,1724479857405,-1636.85,0.00013972,2]
[335760110,1724479857418,-787.22,0.00013972,2]
[335760111,1724479857430,-500.0,0.00013972,2]
[335760112,1724479857440,-500.0,0.00013972,2]
[335760113,1724479857449,-500.0,0.00013972,2]
[335760114,1724479857459,-566.06,0.00013972,2]
[335760115,1724479857469,-948.86,0.00013972,2]
[335760116,1724479857478,-1264.36,0.00013972,2]
[335760117,1724479857488,-500.0,0.00013972,2]
[335760118,1724479857500,-500.0,0.00013972,2]
[335760119,1724479857510,-500.0,0.00013972,2]
[335760120,1724479857520,-546.65,0.00013972,2]
[335760121,1724479857529,-736.42,0.00013972,2]
[335760122,1724479857539,-500.0,0.00013972,2]
[335760123,1724479857548,-999.53,0.00013972,2]
[335760124,1724479857557,-1593.9,0.00013972,2]
[335760125,1724479857567,-824.18,0.00013972,2]
[335760126,1724479857578,-500.0,0.00013972,2]
[335760127,1724479857588,-500.0,0.00013972,2]
[335760128,1724479857597,-500.0,0.00013972,2]
[335760129,1724479857607,-500.0,0.00013972,2]
[335760130,1724479857616,-500.25966525,0.00013972,2]
[335760131,1724479857626,-857.88,0.00013972,2]
[335760132,1724479857635,-500.0,0.00013972,2]
[335760133,1724479857645,-500.0,0.00013972,2]
[335760134,1724479857654,-500.0,0.00013972,2]
[335760135,1724479857664,-755.69,0.00013972,2]
[335760136,1724479857678,-748.81,0.00013972,2]
[335760137,1724479857687,-500.0,0.00013972,2]
[335760138,1724479857696,-618.636103,0.00013972,2]
[335760139,1724479857706,-618.636103,0.00013972,2]
[335760140,1724479857715,-883.29,0.00013972,2]
[335760141,1724479857724,-563.79847369,0.00013972,2]
[335760142,1724479857734,-500.0,0.00013972,2]
[335760143,1724479857743,-3133.28,0.00013972,2]
[335760144,1724479857752,-500.0,0.00013972,2]
[335760145,1724479857761,-618.636103,0.00013972,2]
[335760146,1724479857770,-618.636103,0.00013972,2]
[335760147,1724479857779,-684.22,0.00013972,2]
[335760148,1724479857789,-525.97,0.00013972,2]
[335760149,1724479857798,-500.0,0.00013972,2]
[335760150,1724479857807,-547.69074638,0.00013972,2]
[335760151,1724479857817,-327.322742,0.00013972,2]
[335760152,1724479857827,-327.322742,0.00013972,2]
[335760153,1724479857836,-712.39,0.00013972,2]
[335760154,1724479857846,-500.0,0.00013972,2]
[335760155,1724479857855,-327.322742,0.00013972,2]
[335760156,1724479857864,-1640.21,0.00013972,2]
[335760157,1724479857874,-327.322742,0.00013972,2]
[335760158,1724479857883,-500.0,0.00013972,2]
[335760159,1724479857892,-500.0,0.00013972,2]
[335760160,1724479857901,-500.0,0.00013972,2]
[335760161,1724479857910,-760.06,0.00013972,2]
[335760162,1724479857925,-500.0,0.00013972,2]
[335760163,1724479857934,-500.0,0.00013972,2]
[335760164,1724479857943,-500.0,0.00013972,2]
[335760165,1724479857953,-590.96582078,0.00013972,2]
[335760166,1724479857962,-500.0,0.00013972,2]
[335760167,1724479857971,-908.4,0.00013972,2]
[335760168,1724479857981,-500.0,0.00013972,2]
[335760169,1724479857990,-1128.38,0.00013972,2]
[335760170,1724479857999,-596.58,0.00013972,2]
[335760171,1724479858009,-500.0,0.00013972,2]
[335760172,1724479858018,-500.0,0.00013972,2]
[335760173,1724479858027,-500.0,0.00013972,2]
[335760174,1724479858087,-70.70597383,0.00013972,2]
[335760175,1724479858876,-5720.57521366,0.00013843,2]
[335760176,1724479858888,-429.29402617,0.00013972,2]
[335760177,1724479858899,-2115.2,0.00013972,2]
[335760178,1724479858910,-722.24,0.00013972,2]
[335760179,1724479858923,-331.08228858,0.00013972,2]
[335760180,1724479858934,-2142.23,0.00013972,2]
[335760181,1724479858944,-233.35325357,0.00013972,2]
[335760182,1724479858955,-500.0,0.00013972,2]
[335760183,1724479858967,-500.0,0.00013972,2]
[335760184,1724479858976,-500.0,0.00013972,2]
[335760185,1724479858987,-500.0,0.00013972,2]
[335760186,1724479858999,-500.0,0.00013972,2]
[335760187,1724479859011,-203.559079,0.00013972,2]
[335760188,1724479859022,-203.559079,0.00013972,2]
[335760189,1724479859034,-500.0,0.00013972,2]
[335760190,1724479859045,-1275.74,0.00013972,2]
[335760191,1724479859056,-500.0,0.00013972,2]
[335760192,1724479859067,-1488.884203,0.00013972,2]
[335760193,1724479859076,-542.26,0.00013972,2]
[335760194,1724479859086,-1488.884203,0.00013972,2]
[335760195,1724479859096,-500.0,0.00013972,2]
[335760196,1724479859105,-203.559079,0.00013972,2]
[335760197,1724479859116,-203.559079,0.00013972,2]
[335760198,1724479859126,-1488.884203,0.00013972,2]
[335760199,1724479859135,-1488.884203,0.00013972,2]
[335760200,1724479859146,-500.0,0.00013972,2]
[335760201,1724479859156,-603.26,0.00013972,2]
[335760202,1724479859166,-519.05476155,0.00013972,2]
[335760203,1724479859176,-500.0,0.00013972,2]
[335760204,1724479859186,-500.0,0.00013972,2]
[335760205,1724479859195,-1289.3,0.00013972,2]
[335760206,1724479859205,-732.18,0.00013972,2]
[335760207,1724479859215,-500.0,0.00013972,2]
[335760208,1724479859226,-1850.515096,0.00013972,2]
[335760209,1724479859238,-1850.515096,0.00013972,2]
[335760210,1724479859248,-500.0,0.00013972,2]
[335760211,1724479859258,-500.0,0.00013972,2]
[335760212,1724479859269,-500.0,0.00013972,2]
[335760213,1724479859279,-592.07,0.00013972,2]
[335760214,1724479859290,-151.0,0.00013972,2]
[335760215,1724479859301,-500.0,0.00013972,2]
[335760216,1724479859312,-151.0,0.00013972,2]
[335760217,1724479859322,-1850.515096,0.00013972,2]
[335760218,1724479859334,-225.714086,0.00013972,2]
[335760219,1724479859344,-1850.515096,0.00013972,2]
[335760220,1724479859354,-225.714086,0.00013972,2]
[335760221,1724479859365,-725.65,0.00013972,2]
[335760222,1724479859375,-500.0,0.00013972,2]
[335760223,1724479859386,-566.86701025,0.00013972,2]
[335760224,1724479859395,-500.0,0.00013972,2]
[335760225,1724479859405,-500.0,0.00013972,2]
[335760226,1724479859415,-225.714086,0.00013972,2]
[335760227,1724479859427,-225.714086,0.00013972,2]
[335760228,1724479859436,-500.0,0.00013972,2]
[335760229,1724479859446,-583.05,0.00013972,2]
[335760230,1724479859456,-500.0,0.00013972,2]
[335760231,1724479859466,-1278.85,0.00013972,2]
[335760232,1724479859475,-1546.09,0.00013972,2]
[335760233,1724479859485,-500.0,0.00013972,2]
[335760234,1724479859496,-510.28937839,0.00013972,2]
[335760235,1724479859508,-500.0,0.00013972,2]
[335760236,1724479859517,-999.64,0.00013972,2]
[335760237,1724479859530,-500.0,0.00013972,2]
[335760238,1724479859542,-894.63,0.00013972,2]
[335760239,1724479859553,-1716.46,0.00013972,2]
[335760240,1724479859564,-434.77802,0.00013972,2]
[335760241,1724479859575,-434.77802,0.00013972,2]
[335760242,1724479859585,-3284.094567,0.00013972,2]
[335760243,1724479859595,-434.77802,0.00013972,2]
[335760244,1724479859604,-3284.094567,0.00013972,2]
[335760245,1724479859614,-500.0,0.00013972,2]
[335760246,1724479859624,-1050.21,0.00013972,2]
[335760247,1724479859633,-500.0,0.00013972,2]
[335760248,1724479859643,-2168.56,0.00013972,2]
[335760249,1724479859652,-500.0,0.00013972,2]
[335760250,1724479859661,-434.77802,0.00013972,2]
[335760251,1724479859672,-434.77802,0.00013972,2]
[335760252,1724479859682,-3284.094567,0.00013972,2]
[335760253,1724479859693,-3284.094567,0.00013972,2]
[335760254,1724479859705,-434.77802,0.00013972,2]
[335760255,1724479859715,-500.0,0.00013972,2]
[335760256,1724479859726,-500.0,0.00013972,2]
[335760257,1724479859737,-591.76,0.00013972,2]
[335760258,1724479859748,-500.0,0.00013972,2]
[335760259,1724479859759,-500.0,0.00013972,2]
[335760260,1724479859769,-500.0,0.00013972,2]
[335760261,1724479859779,-662.55,0.00013972,2]
[335760262,1724479859791,-500.0,0.00013972,2]
[335760263,1724479859800,-500.0,0.00013972,2]
[335760264,1724479859812,-778.16,0.00013972,2]
[335760265,1724479859823,-1639.98,0.00013972,2]
[335760266,1724479859833,-500.0,0.00013972,2]
[335760267,1724479859843,-4611.35,0.00013972,2]
[335760268,1724479859852,-500.09,0.00013972,2]
[335760269,1724479859861,-500.0,0.00013972,2]
[335760270,1724479859871,-500.0,0.00013972,2]
[335760271,1724479859880,-506.58545164,0.00013972,2]
[335760272,1724479859890,-500.0,0.00013972,2]
[335760273,1724479859899,-500.0,0.00013972,2]
[335760274,1724479859909,-12461.94,0.00013972,2]
[335760275,1724479859919,-604.64,0.00013972,2]
[335760276,1724479859929,-1238.19,0.00013972,2]
[335760277,1724479859938,-1768.03,0.00013972,2]
[335760278,1724479859948,-620.56,0.00013972,2]
[335760279,1724479859958,-500.0,0.00013972,2]
[335760280,1724479859967,-258.10822085,0.00013972,2]
[335760281,1724479859976,-500.0,0.00013972,2]
[335760282,1724479859986,-13643.58,0.00013972,2]
[335760283,1724479859995,-1927.88,0.00013972,2]
[335760284,1724479860005,-6223.08,0.00013972,2]
[335760285,1724479860016,-1208.39,0.00013972,2]
[335760286,1724479860025,-500.0,0.00013972,2]
[335760287,1724479860034,-500.0,0.00013972,2]
[335760288,1724479860044,-1303.58,0.00013972,2]
[335760289,1724479860054,-587.05,0.00013972,2]
[335760290,1724479860064,-1448.99,0.00013972,2]
[335760291,1724479860073,-500.0,0.00013972,2]
[335760292,1724479860082,-500.0,0.00013972,2]
[335760293,1724479860091,-1267.06,0.00013972,2]
[335760294,1724479860100,-500.0,0.00013972,2]
[335760295,1724479860110,-500.0,0.00013972,2]
[335760296,1724479860119,-1362.92,0.00013972,2]
[335760297,1724479860129,-3698.2,0.00013972,2]
[335760298,1724479860138,-6982.26,0.00013972,2]
[335760299,1724479860148,-500.0,0.00013972,2]
[335760300,1724479860157,-500.0,0.00013972,2]
[335760301,1724479860166,-696.74,0.00013972,2]
[335760302,1724479860176,-591.34,0.00013972,2]
[335760303,1724479860185,-603.79,0.00013972,2]
[335760304,1724479860195,-1298.38,0.00013972,2]
[335760305,1724479860204,-258.12,0.00013972,2]
[335760306,1724479860214,-500.0,0.00013972,2]
[335760307,1724479860224,-500.0,0.00013972,2]
[335760308,1724479860233,-999.31,0.00013972,2]
[335760309,1724479860242,-2527.31,0.00013972,2]
[335760310,1724479860252,-500.0,0.00013972,2]
[335760311,1724479860261,-1000.0,0.00013972,2]
[335760312,1724479860271,-1282.32,0.00013972,2]
[335760313,1724479860280,-2273.68,0.00013972,2]
[335760314,1724479860290,-500.0,0.00013972,2]
[335760315,1724479860300,-459.53187077,0.00013972,2]
[335760316,1724479860309,-3856.7,0.00013972,2]
[335760317,1724479860319,-2510.29,0.00013972,2]
[335760318,1724479860328,-500.0,0.00013972,2]
[335760319,1724479860337,-500.0,0.00013972,2]
[335760320,1724479860347,-500.0,0.00013972,2]
[335760321,1724479860356,-500.0,0.00013972,2]
[335760322,1724479860366,-779.54,0.00013972,2]
[335760323,1724479860376,-500.0,0.00013972,2]
[335760324,1724479860386,-1128.08,0.00013972,2]
[335760325,1724479860396,-500.0,0.00013972,2]
[335760326,1724479860406,-500.0,0.00013972,2]
[335760327,1724479860416,-836.64,0.00013972,2]
[335760328,1724479860426,-500.61120877,0.00013972,2]
[335760329,1724479860435,-500.0,0.00013972,2]
[335760330,1724479860444,-500.0,0.00013972,2]
[335760331,1724479860454,-500.0,0.00013972,2]
[335760332,1724479860464,-500.0,0.00013972,2]
[335760333,1724479860473,-500.83686405,0.00013972,2]
[335760334,1724479860483,-3728.42,0.00013972,2]
[335760335,1724479860492,-500.0,0.00013972,2]
[335760336,1724479860752,-1037.02,0.00013972,2]
[335760337,1724479860762,-500.0,0.00013972,2]
[335760338,1724479860772,-3957.33,0.00013972,2]
[335760339,1724479860781,-1705.15,0.00013972,2]
[335760340,1724479860790,-704.87,0.00013972,2]
[335760341,1724479860799,-538.707119,0.00013972,2]
[335760342,1724479860809,-1275.9,0.00013972,2]
[335760343,1724479860818,-538.707119,0.00013972,2]
[335760344,1724479860827,-538.707119,0.00013972,2]
[335760345,1724479860836,-500.0,0.00013972,2]
[335760346,1724479860846,-2105.15,0.00013972,2]
[335760347,1724479860855,-741.46,0.00013972,2]
[335760348,1724479860864,-720.91,0.00013972,2]
[335760349,1724479860873,-500.0,0.00013972,2]
[335760350,1724479860883,-538.707119,0.00013972,2]
[335760351,1724479860892,-1300.714524,0.00013972,2]
[335760352,1724479860901,-1300.714524,0.00013972,2]
[335760353,1724479860910,-538.707119,0.00013972,2]
[335760354,1724479860919,-1300.714524,0.00013972,2]
[335760355,1724479860928,-538.707119,0.00013972,2]
[335760356,1724479860937,-9390.84,0.00013972,2]
[335760357,1724479860950,-967.49,0.00013972,2]
[335760358,1724479860959,-1833.1,0.00013972,2]
[335760359,1724479860970,-1300.714524,0.00013972,2]
[335760360,1724479860980,-1300.714524,0.00013972,2]
[335760361,1724479860991,-1300.714524,0.00013972,2]
[335760362,1724479861001,-500.0,0.00013972,2]
[335760363,1724479861010,-1555.53,0.00013972,2]
[335760364,1724479861020,-811.25,0.00013972,2]
[335760365,1724479861031,-500.0,0.00013972,2]
[335760366,1724479861040,-500.0,0.00013972,2]
[335760367,1724479861051,-151.195354,0.00013972,2]
[335760368,1724479861061,-6495.28,0.00013972,2]
[335760369,1724479861071,-694.33,0.00013972,2]
[335760370,1724479861081,-10071.7,0.00013972,2]
[335760371,1724479861091,-535.188244,0.00013972,2]
[335760372,1724479861101,-535.188244,0.00013972,2]
[335760373,1724479861111,-535.188244,0.00013972,2]
[335760374,1724479861121,-1040.89,0.00013972,2]
[335760375,1724479861131,-500.0,0.00013972,2]
[335760376,1724479861140,-535.188244,0.00013972,2]
[335760377,1724479861150,-535.188244,0.00013972,2]
[335760378,1724479861160,-535.188244,0.00013972,2]
[335760379,1724479861171,-500.0,0.00013972,2]
[335760380,1724479861180,-3592.176796,0.00013972,2]
[335760381,1724479861190,-3592.176796,0.00013972,2]
[335760382,1724479861200,-775.06,0.00013972,2]
[335760383,1724479861210,-3592.176796,0.00013972,2]
[335760384,1724479861220,-1720.51,0.00013972,2]
[335760385,1724479861229,-11923.4,0.00013972,2]
[335760386,1724479861239,-830.03,0.00013972,2]
[335760387,1724479861248,-524.57444368,0.00013972,2]
[335760388,1724479861259,-3592.176796,0.00013972,2]
[335760389,1724479861269,-3592.176796,0.00013972,2]
[335760390,1724479861279,-3592.176796,0.00013972,2]
[335760391,1724479861289,-960.16,0.00013972,2]
[335760392,1724479861298,-1305.57,0.00013972,2]
[335760393,1724479861308,-500.0,0.00013972,2]
[335760394,1724479861318,-745.68,0.00013972,2]
[335760395,1724479861328,-500.0,0.00013972,2]
[335760396,1724479861337,-500.0,0.00013972,2]
[335760397,1724479861347,-500.0,0.00013972,2]
[335760398,1724479861356,-643.52,0.00013972,2]
[335760399,1724479861366,-500.0,0.00013972,2]
[335760400,1724479861376,-500.0,0.00013972,2]
[335760401,1724479861386,-500.0,0.00013972,2]
[335760402,1724479861396,-1004.45,0.00013972,2]
[335760403,1724479861406,-500.0,0.00013972,2]
[335760404,1724479861415,-755.36,0.00013972,2]
[335760405,1724479861425,-500.0,0.00013972,2]
[335760406,1724479861435,-500.0,0.00013972,2]
[335760407,1724479861448,-679.823101,0.00013972,2]
[335760408,1724479861458,-679.823101,0.00013972,2]
[335760409,1724479861467,-679.823101,0.00013972,2]
[335760410,1724479861477,-500.0,0.00013972,2]
[335760411,1724479861488,-849.78,0.00013972,2]
[335760412,1724479861501,-500.0,0.00013972,2]
[335760413,1724479861510,-701.47,0.00013972,2]
[335760414,1724479861524,-679.823101,0.00013972,2]
[335760415,1724479861533,-679.823101,0.00013972,2]
[335760416,1724479861545,-500.0,0.00013972,2]
[335760417,1724479861556,-679.823101,0.00013972,2]
[335760418,1724479861568,-22909.49,0.00013972,2]
[335760419,1724479861579,-151.0,0.00013972,2]
[335760420,1724479861590,-561.11,0.00013972,2]
[335760421,1724479861600,-151.0,0.00013972,2]
[335760422,1724479861611,-151.0,0.00013972,2]
[335760423,1724479861621,-151.0,0.00013972,2]
[335760424,1724479861631,-500.0,0.00013972,2]
[335760425,1724479861640,-151.0,0.00013972,2]
[335760426,1724479861650,-500.0,0.00013972,2]
[335760427,1724479861661,-151.0,0.00013972,2]
[335760428,1724479861672,-500.0,0.00013972,2]
[335760429,1724479861682,-2519.0,0.00013972,2]
[335760430,1724479861692,-693.36,0.00013972,2]
[335760431,1724479861703,-500.0,0.00013972,2]
[335760432,1724479861713,-1095.67,0.00013972,2]
[335760433,1724479861723,-1059.88,0.00013972,2]
[335760434,1724479861733,-500.0,0.00013972,2]
[335760435,1724479861745,-500.0,0.00013972,2]
[335760436,1724479861756,-500.0,0.00013972,2]
[335760437,1724479861766,-577.65,0.00013972,2]
[335760438,1724479861776,-500.0,0.00013972,2]
[335760439,1724479861785,-1521.04,0.00013972,2]
[335760440,1724479861795,-738.25,0.00013972,2]
[335760441,1724479861805,-500.0,0.00013972,2]
[335760442,1724479861815,-10332.39,0.00013972,2]
[335760443,1724479861825,-5798.0,0.00013972,2]
[335760444,1724479861836,-500.0,0.00013972,2]
[335760445,1724479861846,-500.0,0.00013972,2]
[335760446,1724479861857,-500.0,0.00013972,2]
[335760447,1724479861867,-500.0,0.00013972,2]
[335760448,1724479861877,-500.0,0.00013972,2]
[335760449,1724479861886,-1290.36,0.00013972,2]
[335760450,1724479861897,-1991.38,0.00013972,2]
[335760451,1724479861909,-690.27,0.00013972,2]
[335760452,1724479861920,-151.0,0.00013972,2]
[335760453,1724479861930,-151.0,0.00013972,2]
[335760454,1724479861941,-151.0,0.00013972,2]
[335760455,1724479861952,-853.444838,0.00013972,2]
[335760456,1724479861966,-500.0,0.00013972,2]
[335760457,1724479861977,-853.444838,0.00013972,2]
[335760458,1724479861987,-3816.09,0.00013972,2]
[335760459,1724479861997,-853.444838,0.00013972,2]
[335760460,1724479862007,-3698.42715,0.00013972,2]
[335760461,1724479862018,-3698.42715,0.00013972,2]
[335760462,1724479862029,-232.57120854,0.00013972,2]
[335760463,1724479862039,-1471.4,0.00013972,2]
[335760464,1724479862049,-3698.42715,0.00013972,2]
[335760465,1724479862059,-1033.27,0.00013972,2]
[335760466,1724479862068,-853.444838,0.00013972,2]
[335760467,1724479862077,-1111.16,0.00013972,2]
[335760468,1724479862087,-853.444838,0.00013972,2]
[335760469,1724479862097,-500.0,0.00013972,2]
[335760470,1724479862107,-853.444838,0.00013972,2]
[335760471,1724479862117,-3698.42715,0.00013972,2]
[335760472,1724479862127,-3698.42715,0.00013972,2]
[335760473,1724479862137,-500.0,0.00013972,2]
[335760474,1724479862147,-3698.42715,0.00013972,2]
[335760475,1724479862156,-500.0,0.00013972,2]
[335760476,1724479862166,-500.0,0.00013972,2]
[335760477,1724479862176,-2945.52,0.00013972,2]
[335760478,1724479862187,-500.0,0.00013972,2]
[335760479,1724479862197,-1354.1,0.00013972,2]
[335760480,1724479862207,-500.0,0.00013972,2]
[335760481,1724479862217,-500.0,0.00013972,2]
[335760482,1724479862226,-1421.72,0.00013972,2]
[335760483,1724479862236,-501.32545482,0.00013972,2]
[335760484,1724479862246,-636.55,0.00013972,2]
[335760485,1724479862256,-171.090052,0.00013972,2]
[335760486,1724479862266,-3165.38,0.00013972,2]
[335760487,1724479862276,-171.090052,0.00013972,2]
[335760488,1724479862286,-171.090052,0.00013972,2]
[335760489,1724479862296,-500.0,0.00013972,2]
[335760490,1724479862306,-171.090052,0.00013972,2]
[335760491,1724479862316,-1008.99,0.00013972,2]
[335760492,1724479862326,-718.41,0.00013972,2]
[335760493,1724479862335,-171.090052,0.00013972,2]
[335760494,1724479862345,-171.090052,0.00013972,2]
[335760495,1724479862354,-622.11,0.00013972,2]
[335760496,1724479862364,-500.0,0.00013972,2]
[335760497,1724479862374,-3509.98,0.00013972,2]
[335760498,1724479862383,-500.0,0.00013972,2]
[335760499,1724479862393,-5063.61,0.00013972,2]
[335760500,1724479862403,-500.0,0.00013972,2]
[335760501,1724479862413,-2226.83,0.00013972,2]
[335760502,1724479862424,-500.0,0.00013972,2]
[335760503,1724479862433,-516.38483017,0.00013972,2]
[335760504,1724479862443,-500.0,0.00013972,2]
[335760505,1724479862453,-1782.14,0.00013972,2]
[335760506,1724479862463,-7365.31,0.00013972,2]
[335760507,1724479862473,-718.74,0.00013972,2]
[335760508,1724479862483,-934.92,0.00013972,2]
[335760509,1724479862493,-500.0,0.00013972,2]
[335760510,1724479862508,-500.0,0.00013972,2]
[335760511,1724479862518,-500.0,0.00013972,2]
[335760512,1724479862528,-500.0,0.00013972,2]
[335760513,1724479862539,-1865.14,0.00013972,2]
[335760514,1724479862548,-1306.95,0.00013972,2]
[335760515,1724479862558,-500.0,0.00013972,2]
[335760516,1724479862570,-10587.27,0.00013972,2]
[335760517,1724479862583,-1001.92,0.00013972,2]
[335760518,1724479862595,-20920.35,0.00013972,2]
[335760519,1724479862605,-2003.38,0.00013972,2]
[335760520,1724479862615,-500.0,0.00013972,2]
[335760521,1724479862629,-500.0,0.00013972,2]
[335760522,1724479862639,-500.0,0.00013972,2]
[335760523,1724479862649,-1094.72,0.00013972,2]
[335760524,1724479862658,-14688.01,0.00013972,2]
[335760525,1724479862669,-500.0,0.00013972,2]
[335760526,1724479862679,-500.0,0.00013972,2]
[335760527,1724479862689,-1696.02,0.00013972,2]
[335760528,1724479862701,-950.259632,0.00013972,2]
[335760529,1724479862712,-950.259632,0.00013972,2]
[335760530,1724479862724,-950.259632,0.00013972,2]
[335760531,1724479862736,-561.87,0.00013972,2]
[335760532,1724479862748,-950.259632,0.00013972,2]
[335760533,1724479862759,-950.259632,0.00013972,2]
[335760534,1724479862770,-950.259632,0.00013972,2]